{"text_format":"1","workbook":"xlsx","n_sheets":2,"sheets":["Úvodní informace","Přehled změn a dodatků"],"not_rendered":{"charts":0,"images":0,"macros":1,"external_links":0,"defined_names":9,"comments":1,"pivot_tables":0},"unopened":[],"bounds":{"document_bytes":16777216,"sheet_cells":100000,"rows_first":2000,"rows_last":500,"rows_between":2000,"halvings":0,"cell_chars":16384,"cell_head_chars":4096},"cells_cut":0,"cells_raw":0,"read":"whole","date_system":"1900"}

{"sheet":"Úvodní informace","index":0,"n_rows":36,"n_cols":13,"rows_kept":36,"cut":false,"hidden":false,"merged":[[34,1,34,13],[35,1,36,13],[27,1,28,13],[31,10,31,11],[0,0,2,13],[3,0,8,13],[18,2,19,13],[22,2,24,13],[11,1,11,13],[13,1,13,13],[9,1,9,13],[10,1,10,13],[12,1,12,13],[14,2,16,13]]}
["Úvodní informace k tomuto dokumentu"]
[]
[]
["Upozornění: \nTento dokument využívá funkci maker, tudíž se může jevit jako nedůvěryhodný či nebezpečný, a to v návaznosti na bezpečnostní nastavení Vašeho počítače, připadně aplikace MS Excel. Makra však můžete bez obav používat, případně jejich používání povolit - makra jsou nastavena v nezbytném rozsahu pro zjednodušení a správnou funkčnost níže uvedené tabulky. V případě technických potíží kontaktujte své IT oddělení."]
[]
[]
[]
[]
[]
["1)","Tento soubor obsahuje dva listy s názvy \"Instrukce\" a \"Přehled změn a dodatků\" (viz níže). "]
[]
["2)","Tabulka určená k doplnění je obsahem listu Přehled změn a dodatků. Tabulka vychází ze zákona č. 137/2006 Sb., o veřejných zakázkách, ve znění pozdějších předpisů (dále jen \"ZVZ\") a zákona č. 134/2016 Sb., o zadávání veřejných zakázek, ve znění pozdějších předpisů (dále jen \"ZZVZ\")."]
[]
["3)","Instrukce pro doplňování Přehledu změn a dodatků (dále jen \"Přehled\"):"]
[null,"a)","pokud bude Přehled předkládán prvně, budou v něm obsaženy aktuální (výchozí) informace o změnách a dodatcích k dotčené akci (veřejné zakázky). Pokud následně vyvstane potřeba předložit upravený Přehled, bude tento vycházet z předchozího Přehledu, přičemž bude doplněn o nové informace (tj. bude se jednat o aktualizovaný Přehled)."]
[]
[]
[null,"b)","doplňují se žlutě podbarvená pole; tato pole po výběru zobrací nápovědu,"]
[null,"c)","u buněk označených v pravém horním rohu červeným trojúhelníkem jsou uvedeny poznámky, komentáře či bližší upřesnění,"]
[]
[null,"d)","ostatní pole neslouží k doplnění (jsou doplňována automaticky, je-li to pro dané pole relevantní),"]
[null,"e)","částky budou zadávány v Kč bez daně z přidané hodnoty (DPH),"]
[null,"f)","u změnové tabulky určené k doplnění je možné vkládat nové řádky kliknutím na příslušné tlařítko s tím, že vzorce by měly být automaticky přenášeny; pro jistotu však výstupy překontrolujte. Nové řádky nevkládejte pokud není doplněn žádný údaj o změně (popis změny)."]
[]
[]
[null,"g)","Finanční částky ve sloupci hodnot budou uváděny v Kč bez DPH s přesností na 2 desetinná místa."]
[]
["4)","Přehled změn a dodatků zasílá příjemce dotace v souladu se stanoveným příkazem ředitele OIVZ (tj. elektronicky); tisk slouží pouze pro vlastní potřebu příjemce dotace."]
[]
[]
[]
[null,null,null,null,null,null,null,null,null,null,"Verze dokumentu:",null,"1.02"]
[]
[null,"Změny oproti předchozí verzi:"]
[null," - upraveny nesrovnalosti v komentářích k ust. § 222 odst. 5 a 6 ZZVZ (buňky I6 až L6)"]
[null," - upraven vzorec pro výpočet celkového cenového nárůstu ve smyslu ust. § 222 odst. 9 ZZVZ (tabulka nepočítala validně pokud byly vícepráce a méněpráce na různých řádcích - původně bylo předpokládáno, že jsou změny činěny v rámci jednoho ZL)"]

{"sheet":"Přehled změn a dodatků","index":1,"n_rows":40,"n_cols":42,"rows_kept":40,"cut":false,"hidden":false,"merged":[[39,11,39,12],[18,7,18,13],[2,12,2,13],[22,10,22,11],[1,0,1,2],[2,0,2,2],[3,0,3,2],[3,3,3,6],[2,3,2,9],[1,3,1,9],[1,10,1,11],[38,2,38,4],[23,2,23,4],[22,6,22,7],[22,8,22,9],[33,2,33,4],[0,0,0,13],[34,2,34,4],[24,2,24,4],[1,12,1,13],[2,10,2,11],[21,2,21,4],[21,6,21,7],[32,2,32,4],[30,2,30,4],[31,2,31,4],[26,2,26,4],[27,2,27,4],[21,8,21,9],[22,12,22,13],[21,10,21,11],[21,12,21,13],[22,2,22,4],[25,2,25,4],[37,2,37,4],[35,2,35,4],[36,2,36,4],[28,2,28,4],[29,2,29,4]]}
["Přehled změn a dodatků",null,null,null,null,null,null,null,null,null,null,null,null,null,null,null,null,null,null,null,null,null,null,null,null,null,null,null,null,null,null,null,null,null,null,null,null,null,null,null,null,"Druh veřejné zakázky"]
["Název akce:",null,null,null,null,null,null,null,null,null,"Identifikační č. akce EDS/SMVS:",null,null,null,null,null,null,null,null,null,null,null,null,null,null,null,null,null,null,null,null,null,null,null,null,null,null,null,null,null,null,"dodávky"]
["Název veřejné zakázky:",null,null,null,null,null,null,null,null,null,"Druh veřejné zakázky:",null,"stavební práce",null,null,null,null,null,null,null,null,null,null,null,null,null,null,null,null,null,null,null,null,null,null,null,null,null,null,null,null,"služby"]
["Původní hodnota závazku (cena sjednaná ve smlouvě bez DPH):",null,null,null,null,null,null,null,null,null,null,null,null,null,null,null,null,null,null,null,null,null,null,null,null,null,null,null,null,null,null,null,null,null,null,null,null,null,null,null,null,"stavební práce"]
[]
["Změna č.","Popis změn","Dodatek č.","Celková hodnota změn","Hodnota změny\n(ZVZ)\n-","Hodnota změny\n(ZVZ)\n+","Hodnota změny\n(§222 odst. 4 ZZVZ)\n-","Hodnota změny\n(§222 odst. 4 ZZVZ)\n+","Hodnota změny\n(§222 odst. 5 ZZVZ)\n-","Hodnota změny\n(§222 odst. 5 ZZVZ)\n+","Hodnota změny\n(§222 odst. 6 ZZVZ)\n-","Hodnota změny\n(§222 odst. 6 ZZVZ)\n+","Hodnota změny\n(§222 odst. 7 ZZVZ)\n-","Hodnota změny\n(§222 odst. 7 ZZVZ) \n+","Hodnota změny ve vztahu k § 222 odst. 4 ZZVZ","Hodnota změny ve vztahu k §222 odst. 5 ZZVZ","Hodnota změny ve vztahu k §222 odst. 6 ZZVZ\n","Cenový nárůst související se změnou \npodle §222 odst. 5 a 6 ZZVZ (ve smyslu ust. § 222odst. 9)","Dodatek č. 1","Dodatek č. 2","Dodatek č. 3","Dodatek č. 4","Dodatek č. 5","Dodatek č. 6","Dodatek č. 7","Dodatek č. 8","Dodatek č. 9","Dodatek č. 10","Dodatek č. 11","Dodatek č. 12","Dodatek č. 13","Dodatek č. 14","Dodatek č. 15"]
[null,null,null,{"$f":"(F7-E7)+(H7-G7)+(J7-I7)+(L7-K7)+(N7-M7)","v":0},null,null,null,null,null,null,null,null,null,null,{"$f":"G7+H7","v":0},{"$f":"J7+I7","v":0},{"$f":"L7+K7+F7","v":0},{"$f":"L7+J7+F7","v":0},{"$f":"IF($C7=1,$D7,\"\")","v":""},{"$f":"IF($C7=2,$D7,\"\")","v":""},{"$f":"IF($C7=3,$D7,\"\")","v":""},{"$f":"IF($C7=4,$D7,\"\")","v":""},{"$f":"IF($C7=5,$D7,\"\")","v":""},{"$f":"IF($C7=6,$D7,\"\")","v":""},{"$f":"IF($C7=7,$D7,\"\")","v":""},{"$f":"IF($C7=8,$D7,\"\")","v":""},{"$f":"IF($C7=9,$D7,\"\")","v":""},{"$f":"IF($C7=10,$D7,\"\")","v":""},{"$f":"IF($C7=11,$D7,\"\")","v":""},{"$f":"IF($C7=12,$D7,\"\")","v":""},{"$f":"IF($C7=13,$D7,\"\")","v":""},{"$f":"IF($C7=14,$D7,\"\")","v":""},{"$f":"IF($C7=15,$D7,\"\")","v":""}]
[null,null,null,{"$f":"(F8-E8)+(H8-G8)+(J8-I8)+(L8-K8)+(N8-M8)","v":0},null,null,null,null,null,null,null,null,null,null,{"$f":"G8+H8","v":0},{"$f":"J8+I8","v":0},{"$f":"L8+K8+F8","v":0},0,{"$f":"IF($C8=1,$D8,\"\")","v":""},{"$f":"IF($C8=2,$D8,\"\")","v":""},{"$f":"IF($C8=3,$D8,\"\")","v":""},{"$f":"IF($C8=4,$D8,\"\")","v":""},{"$f":"IF($C8=5,$D8,\"\")","v":""},{"$f":"IF($C8=6,$D8,\"\")","v":""},{"$f":"IF($C8=7,$D8,\"\")","v":""},{"$f":"IF($C8=8,$D8,\"\")","v":""},{"$f":"IF($C8=9,$D8,\"\")","v":""},{"$f":"IF($C8=10,$D8,\"\")","v":""},{"$f":"IF($C8=11,$D8,\"\")","v":""},{"$f":"IF($C8=12,$D8,\"\")","v":""},{"$f":"IF($C8=13,$D8,\"\")","v":""},{"$f":"IF($C8=14,$D8,\"\")","v":""},{"$f":"IF($C8=15,$D8,\"\")","v":""}]
[null,null,null,0,null,null,null,null,null,null,null,null,null,null,{"$f":"G9+H9","v":0},{"$f":"J9+I9","v":0},0,0,"","","","","","","","","","","","","","",""]
[null,null,null,0,null,null,null,null,null,null,null,null,null,null,0,0,0,0,"","","","","","","","","","","","","","",""]
[null,null,null,0,null,null,null,null,null,null,null,null,null,null,{"$f":"G11+H11","v":0},0,0,0,"","","","","","","","","","","","","","",""]
[null,null,null,0,null,null,null,null,null,null,null,null,null,null,0,0,0,0,"","","","","","","","","","","","","","",""]
[null,null,null,{"$f":"(F13-E13)+(H13-G13)+(J13-I13)+(L13-K13)+(N13-M13)","v":0},null,null,null,null,null,null,null,null,null,null,{"$f":"G13+H13","v":0},{"$f":"J13+I13","v":0},{"$f":"L13+K13+F13","v":0},0,{"$f":"IF($C13=1,$D13,\"\")","v":""},{"$f":"IF($C13=2,$D13,\"\")","v":""},{"$f":"IF($C13=3,$D13,\"\")","v":""},{"$f":"IF($C13=4,$D13,\"\")","v":""},{"$f":"IF($C13=5,$D13,\"\")","v":""},{"$f":"IF($C13=6,$D13,\"\")","v":""},{"$f":"IF($C13=7,$D13,\"\")","v":""},{"$f":"IF($C13=8,$D13,\"\")","v":""},{"$f":"IF($C13=9,$D13,\"\")","v":""},{"$f":"IF($C13=10,$D13,\"\")","v":""},{"$f":"IF($C13=11,$D13,\"\")","v":""},{"$f":"IF($C13=12,$D13,\"\")","v":""},{"$f":"IF($C13=13,$D13,\"\")","v":""},{"$f":"IF($C13=14,$D13,\"\")","v":""},{"$f":"IF($C13=15,$D13,\"\")","v":""}]
[null,null,null,0,null,null,null,null,null,null,null,null,null,null,0,0,0,0,"","","","","","","","","","","","","","",""]
[null,null,null,0,null,null,null,null,null,null,null,null,null,null,0,0,0,0,"","","","","","","","","","","","","","",""]
[null,null,null,0,null,null,null,null,null,null,null,null,null,null,0,0,0,0,"","","","","","","","","","","","","","",""]
[null,null,null,0,null,null,null,null,null,null,null,null,null,null,{"$f":"G17+H17","v":0},0,0,0,"","","","","","","","","","","","","","",""]
[null,"CELKEM",null,{"$f":"SUBTOTAL(109,Tabulka1[Celková hodnota změn])","v":0},{"$f":"SUBTOTAL(109,Tabulka1[Hodnota změny\n(ZVZ)\n-])","v":0},{"$f":"SUBTOTAL(109,Tabulka1[Hodnota změny\n(ZVZ)\n+])","v":0},{"$f":"SUBTOTAL(109,Tabulka1[Hodnota změny\n(§222 odst. 4 ZZVZ)\n-])","v":0},{"$f":"SUBTOTAL(109,Tabulka1[Hodnota změny\n(§222 odst. 4 ZZVZ)\n+])","v":0},{"$f":"SUBTOTAL(109,Tabulka1[Hodnota změny\n(§222 odst. 5 ZZVZ)\n-])","v":0},{"$f":"SUBTOTAL(109,Tabulka1[Hodnota změny\n(§222 odst. 5 ZZVZ)\n+])","v":0},{"$f":"SUBTOTAL(109,Tabulka1[Hodnota změny\n(§222 odst. 6 ZZVZ)\n-])","v":0},{"$f":"SUBTOTAL(109,Tabulka1[Hodnota změny\n(§222 odst. 6 ZZVZ)\n+])","v":0},{"$f":"SUBTOTAL(109,Tabulka1[Hodnota změny\n(§222 odst. 7 ZZVZ)\n-])","v":0},{"$f":"SUBTOTAL(109,Tabulka1[Hodnota změny\n(§222 odst. 7 ZZVZ) \n+])","v":0},{"$f":"SUBTOTAL(109,Tabulka1[Hodnota změny ve vztahu k § 222 odst. 4 ZZVZ])","v":0},{"$f":"SUBTOTAL(109,Tabulka1[Hodnota změny ve vztahu k §222 odst. 5 ZZVZ])","v":0},{"$f":"SUBTOTAL(109,Tabulka1[Hodnota změny ve vztahu k §222 odst. 6 ZZVZ\n])","v":0},{"$f":"SUBTOTAL(109,Tabulka1[Cenový nárůst související se změnou \npodle §222 odst. 5 a 6 ZZVZ (ve smyslu ust. § 222odst. 9)])","v":0},{"$f":"SUBTOTAL(109,Tabulka1[Dodatek č. 1])","v":0},{"$f":"SUBTOTAL(109,Tabulka1[Dodatek č. 2])","v":0},{"$f":"SUBTOTAL(109,Tabulka1[Dodatek č. 3])","v":0},{"$f":"SUBTOTAL(109,Tabulka1[Dodatek č. 4])","v":0},{"$f":"SUBTOTAL(109,Tabulka1[Dodatek č. 5])","v":0},{"$f":"SUBTOTAL(109,Tabulka1[Dodatek č. 6])","v":0},{"$f":"SUBTOTAL(109,Tabulka1[Dodatek č. 7])","v":0},{"$f":"SUBTOTAL(109,Tabulka1[Dodatek č. 8])","v":0},{"$f":"SUBTOTAL(109,Tabulka1[Dodatek č. 9])","v":0},{"$f":"SUBTOTAL(109,Tabulka1[Dodatek č. 10])","v":0},{"$f":"SUBTOTAL(109,Tabulka1[Dodatek č. 11])","v":0},{"$f":"SUBTOTAL(109,Tabulka1[Dodatek č. 12])","v":0},{"$f":"SUBTOTAL(109,Tabulka1[Dodatek č. 13])","v":0},{"$f":"SUBTOTAL(109,Tabulka1[Dodatek č. 14])","v":0},{"$f":"SUBTOTAL(109,Tabulka1[Dodatek č. 15])","v":0}]
[null,"CELKEM (v %)",null,{"$f":"IF($D$4=0,0,$D$18/$D$4)","v":0},null,null,null,"*Kliknutím na toto pole dojde k přidání nového řádku za poslední výskyt doplněného (neprázdného) pole ve výše uvedené tabulce, ",null,null,null,null,null,null,{"$f":"IF($D$4=0,0,$O$18/$D$4)","v":0},{"$f":"IF($D$4=0,0,$P$18/$D$4)","v":0},{"$f":"IF($D$4=0,0,($Q$18)/$D$4)","v":0}]
[null,null,null,null,null,null,null,null,null,null,null,null,null,null,{"$f":"IF(OR($M$3=\"dodávky\",$M$3=\"služby\"),O19<0.1,O19<0.15)","v":true},{"$f":"IF(P19<=0.5,TRUE,FALSE)","v":true},{"$f":"IF(Q19<=0.5,TRUE,FALSE)","v":true}]
["Souhrnný přehled celkové ceny včetně změn"]
[null,"Popis","Cena",null,null,null,"Hodnota změny \nve vztahu k § 222 odst. 4 ZZVZ",null,"Hodnota změny \nve vztahu k §222 odst. 5 ZZVZ",null,"Hodnota změny \nve vztahu k §222 odst. 6 ZZVZ\n",null,"Cenový nárůst související se změnou \npodle §222 odst. 5 a 6 ZZVZ (ve smyslu ust. § 222odst. 9)"]
[null,"Původní smlouva",{"$f":"$D$4","v":0},null,null,null,{"$f":"IF($D$4=0,0,$O$18/$D$4)","v":0},null,{"$f":"IF($D$4=0,0,$P$18/$D$4)","v":0},null,{"$f":"IF($D$4=0,0,($Q$18)/$D$4)","v":0},null,{"$f":"IF($D$4=0,0,(VALUE(IF(($L$18+$J$18)-($K$18+$I$18)<=0,\"0\",($L$18-$K$18)+($J$18-$I$18)))+$F$18)/$D$4)","v":0},null,null," "]
[null,{"$f":"IFERROR(IF(VLOOKUP(H24,$C$7:$C$17,1,FALSE),CONCATENATE(G24,\" \",H24),\"\"),\"\")","v":""},{"$f":"IF(F24=TRUE,SUMIFS($D$7:$D$17,$C$7:$C$17,H24),\"\")","v":""},null,null,{"$f":"IFERROR(IF(VLOOKUP(VALUE(RIGHT(B24,2)),$C$7:$C$17,1,FALSE),TRUE,FALSE),FALSE)","v":false},"Dodatek č.",1,null,null,null,null,null,{"$f":"IF(M23<=0.3,TRUE,FALSE)","v":true}]
[null,"","",null,null,false,"Dodatek č.",2]
[null,"","",null,null,false,"Dodatek č.",3]
[null,"","",null,null,false,"Dodatek č.",4]
[null,"","",null,null,false,"Dodatek č.",5]
[null,"","",null,null,false,"Dodatek č.",6]
[null,"","",null,null,false,"Dodatek č.",7]
[null,"","",null,null,false,"Dodatek č.",8]
[null,"","",null,null,false,"Dodatek č.",9]
[null,"","",null,null,false,"Dodatek č.",10]
[null,"","",null,null,false,"Dodatek č.",11]
[null,"","",null,null,false,"Dodatek č.",12]
[null,"","",null,null,false,"Dodatek č.",13]
[null,"","",null,null,false,"Dodatek č.",14]
[null,"","",null,null,false,"Dodatek č.",15]
[null,"Realizační cena CELKEM vč. změn",{"$f":"SUM(C23:E38)","v":0}]
[null,null,null,null,null,null,null,null,null,null,null,"Verze dokumentu:",null,{"$f":"'Úvodní informace'!M32","v":"1.02"}]